[Event "*** Titled Tuesday Blitz"]
[Site "Chess.com"]
[Date "2020.04.28"]
[Round "1"]
[White "grandemestregringo"]
[Black "bakki78"]
[Result "1-0"]
[WhiteElo "2417"]
[BlackElo "2738"]
[TimeControl "180+1"]
[EndTime "10:05:28 PDT"]
[Termination "grandemestregringo won by resignation"]

1. d4 {[%clk 0:02:59.8]} 1... Nf6 {[%clk 0:02:59.1]} 2. c4 {[%clk 0:03:00.2]}
2... g6 {[%clk 0:02:59.4]} 3. Nc3 {[%clk 0:03:00]} 3... Bg7 {[%clk 0:02:59.5]}
4. e4 {[%clk 0:03:00.6]} 4... d6 {[%clk 0:02:59.7]} 5. Nf3 {[%clk 0:03:01.3]}
5... O-O {[%clk 0:02:59.8]} 6. Be2 {[%clk 0:03:01.9]} 6... Bg4 {[%clk
0:02:59.7]} 7. O-O {[%clk 0:02:59]} 7... Nfd7 {[%clk 0:02:59.5]} 8. Be3 {[%clk
0:02:57.4]} 8... a6 {[%clk 0:02:59.1]} 9. d5 {[%clk 0:02:50.3]} 9... c5 {[%clk
0:02:54.7]} 10. h3 {[%clk 0:02:40.1]} 10... Bxf3 {[%clk 0:02:53.9]} 11. Bxf3
{[%clk 0:02:41]} 11... b5 {[%clk 0:02:54.2]} 12. cxb5 {[%clk 0:02:41.9]} 12...
axb5 {[%clk 0:02:54.3]} 13. Nxb5 {[%clk 0:02:41]} 13... Bxb2 {[%clk 0:02:51.9]}
14. Rb1 {[%clk 0:02:41]} 14... Bg7 {[%clk 0:02:51]} 15. a3 {[%clk 0:02:36]}
15... Na6 {[%clk 0:02:48.7]} 16. Be2 {[%clk 0:02:36.2]} 16... Nc7 {[%clk
0:02:48.2]} 17. a4 {[%clk 0:02:36.2]} 17... Nb6 {[%clk 0:02:43.2]} 18. Nxc7
{[%clk 0:02:22.6]} 18... Qxc7 {[%clk 0:02:42.5]} 19. Bb5 {[%clk 0:02:23.5]}
19... Ra7 {[%clk 0:02:41]} 20. Qc2 {[%clk 0:02:15.9]} 20... e6 {[%clk
0:02:37.8]} 21. dxe6 {[%clk 0:02:13.9]} 21... fxe6 {[%clk 0:02:37.1]} 22. Rfd1
{[%clk 0:02:14.6]} 22... Rfa8 {[%clk 0:02:24]} 23. Bf4 {[%clk 0:01:54]} 23... e5
{[%clk 0:02:22.7]} 24. Be3 {[%clk 0:01:53.9]} 24... Nxa4 {[%clk 0:02:19.4]} 25.
Bc4+ {[%clk 0:01:49]} 25... Kh8 {[%clk 0:02:16.6]} 26. Bd5 {[%clk 0:01:42.6]}
26... Rf8 {[%clk 0:02:14]} 27. Qb3 {[%clk 0:01:37.8]} 27... Ra5 {[%clk
0:01:48.3]} 28. Ra1 {[%clk 0:01:24.7]} 28... Ra7 {[%clk 0:01:24.5]} 29. Rxa4
{[%clk 0:01:21.7]} 29... Rxa4 {[%clk 0:01:24.4]} 30. Qxa4 {[%clk 0:01:22.6]}
30... h5 {[%clk 0:01:24]} 31. Rb1 {[%clk 0:01:21.3]} 31... Qe7 {[%clk
0:01:21.9]} 32. Rb7 {[%clk 0:01:17.4]} 32... Qf6 {[%clk 0:01:21.8]} 33. Qd7
{[%clk 0:01:12.3]} 33... Ra8 {[%clk 0:01:17.7]} 34. Bh6 {[%clk 0:00:51.7]} 1-0

[Event "*** Titled Tuesday Blitz"]
[Site "Chess.com"]
[Date "2020.04.28"]
[Round "1"]
[White "Mimsychess"]
[Black "Stewie_89"]
[Result "1-0"]
[WhiteElo "2335"]
[BlackElo "2625"]
[TimeControl "180+1"]
[EndTime "10:05:28 PDT"]
[Termination "Mimsychess won by resignation"]

1. e4 {[%clk 0:03:00.9]} 1... Nf6 {[%clk 0:02:58.9]} 2. e5 {[%clk 0:03:00.1]}
2... Nd5 {[%clk 0:02:59.3]} 3. d4 {[%clk 0:03:00.7]} 3... d6 {[%clk 0:02:59.1]}
4. Nf3 {[%clk 0:03:01.2]} 4... g6 {[%clk 0:02:58.6]} 5. Bc4 {[%clk 0:02:56]}
5... c6 {[%clk 0:02:58.2]} 6. O-O {[%clk 0:02:54.6]} 6... Bg7 {[%clk 0:02:57.9]}
7. h3 {[%clk 0:02:51.8]} 7... O-O {[%clk 0:02:55.7]} 8. Qe2 {[%clk 0:02:52.3]}
8... dxe5 {[%clk 0:02:48.9]} 9. dxe5 {[%clk 0:02:51.8]} 9... h6 {[%clk
0:02:34.6]} 10. Rd1 {[%clk 0:02:51.2]} 10... Qa5 {[%clk 0:02:26.5]} 11. Bd2
{[%clk 0:02:38.7]} 11... Qb6 {[%clk 0:02:24.8]} 12. Nc3 {[%clk 0:02:36.2]} 12...
Be6 {[%clk 0:02:16.5]} 13. Na4 {[%clk 0:02:25]} 13... Qc7 {[%clk 0:02:13.8]} 14.
Nc5 {[%clk 0:02:25]} 14... Bf5 {[%clk 0:01:51]} 15. e6 {[%clk 0:02:08.9]} 15...
f6 {[%clk 0:01:35]} 16. Nd4 {[%clk 0:02:02]} 16... b6 {[%clk 0:01:29]} 17. Nxf5
{[%clk 0:01:59.6]} 17... gxf5 {[%clk 0:01:28.4]} 18. Nd3 {[%clk 0:01:52.1]}
18... b5 {[%clk 0:01:11.3]} 19. Bb3 {[%clk 0:01:44.6]} 19... Na6 {[%clk
0:01:05.5]} 20. Qh5 {[%clk 0:01:43.7]} 20... Rad8 {[%clk 0:00:56.5]} 21. Qg6
{[%clk 0:01:33.5]} 21... f4 {[%clk 0:00:43]} 22. Bxd5 {[%clk 0:01:29.9]} 22...
Rxd5 {[%clk 0:00:41.9]} 23. Bxf4 {[%clk 0:01:30.4]} 23... Qd8 {[%clk 0:00:26.7]}
24. Bxh6 {[%clk 0:01:29.4]} 24... Rg5 {[%clk 0:00:27.3]} 25. Bxg5 {[%clk
0:01:27.7]} 25... fxg5 {[%clk 0:00:28.2]} 26. Ne5 {[%clk 0:01:24.3]} 26... Qe8
{[%clk 0:00:27]} 27. Nf7 {[%clk 0:01:23.9]} 27... Nc5 {[%clk 0:00:24.4]} 28. Rd8
{[%clk 0:01:21.4]} 1-0

[Event "*** Titled Tuesday Blitz"]
[Site "Chess.com"]
[Date "2020.04.28"]
[Round "1"]
[White "novocane"]
[Black "vovachesss"]
[Result "0-1"]
[WhiteElo "2241"]
[BlackElo "2574"]
[TimeControl "180+1"]
[EndTime "10:05:28 PDT"]
[Termination "vovachesss won by resignation"]

1. d4 {[%clk 0:02:59.4]} 1... d6 {[%clk 0:02:48.3]} 2. c4 {[%clk 0:02:57.4]}
2... e5 {[%clk 0:02:45.4]} 3. Nf3 {[%clk 0:02:55.7]} 3... exd4 {[%clk
0:02:44.8]} 4. Nxd4 {[%clk 0:02:53.7]} 4... Nf6 {[%clk 0:02:44.2]} 5. g3 {[%clk
0:02:47.6]} 5... g6 {[%clk 0:02:43.3]} 6. Bg2 {[%clk 0:02:46.8]} 6... Bg7 {[%clk
0:02:43.9]} 7. O-O {[%clk 0:02:46.8]} 7... O-O {[%clk 0:02:44.2]} 8. Nc3 {[%clk
0:02:46.8]} 8... Nbd7 {[%clk 0:02:43.2]} 9. e3 {[%clk 0:02:23.3]} 9... a5 {[%clk
0:02:37]} 10. b3 {[%clk 0:02:21.8]} 10... Nc5 {[%clk 0:02:36.5]} 11. Bb2 {[%clk
0:02:20.8]} 11... Re8 {[%clk 0:02:33]} 12. a3 {[%clk 0:02:14.5]} 12... c6 {[%clk
0:02:23.1]} 13. Qc2 {[%clk 0:02:11.3]} 13... Qe7 {[%clk 0:02:10.9]} 14. Rfd1
{[%clk 0:02:08.6]} 14... Bg4 {[%clk 0:02:07.8]} 15. Nde2 {[%clk 0:01:53.1]}
15... Bf5 {[%clk 0:01:57.8]} 16. e4 {[%clk 0:01:09]} 16... Ncxe4 {[%clk
0:01:50.7]} 17. Nxe4 {[%clk 0:01:05.9]} 17... Nxe4 {[%clk 0:01:33]} 18. Bxg7
{[%clk 0:00:33.4]} 18... Nxf2 {[%clk 0:01:20.4]} 19. Qb2 {[%clk 0:00:19.6]}
19... Nxd1 {[%clk 0:01:20.1]} 20. Rxd1 {[%clk 0:00:16.4]} 20... Qxe2 {[%clk
0:01:20.5]} 0-1

[Event "*** Titled Tuesday Blitz"]
[Site "Chess.com"]
[Date "2020.04.28"]
[Round "1"]
[White "Milchone1"]
[Black "HrvojeZagreb"]
[Result "1-0"]
[WhiteElo "2504"]
[BlackElo "2105"]
[TimeControl "180+1"]
[EndTime "10:05:29 PDT"]
[Termination "Milchone1 won by resignation"]

1. Nf3 {[%clk 0:02:45.3]} 1... f5 {[%clk 0:02:57.3]} 2. c4 {[%clk 0:02:44]} 2...
Nf6 {[%clk 0:02:57.3]} 3. d4 {[%clk 0:02:44.4]} 3... d6 {[%clk 0:02:57.4]} 4. g3
{[%clk 0:02:44.7]} 4... e6 {[%clk 0:02:57.7]} 5. Bg2 {[%clk 0:02:44.6]} 5... Be7
{[%clk 0:02:58.1]} 6. b3 {[%clk 0:02:44.4]} 6... O-O {[%clk 0:02:57.2]} 7. Bb2
{[%clk 0:02:44.7]} 7... Ne4 {[%clk 0:02:50]} 8. Nbd2 {[%clk 0:02:45]} 8... Bf6
{[%clk 0:02:45.3]} 9. Qc2 {[%clk 0:02:43.1]} 9... Nxd2 {[%clk 0:02:25.8]} 10.
Qxd2 {[%clk 0:02:44]} 10... Qe8 {[%clk 0:02:11.3]} 11. O-O {[%clk 0:02:43.4]}
11... Nc6 {[%clk 0:02:02.2]} 12. Rfe1 {[%clk 0:02:42]} 12... e5 {[%clk
0:02:00.5]} 13. dxe5 {[%clk 0:02:41]} 13... dxe5 {[%clk 0:01:59.9]} 14. e3
{[%clk 0:02:37.5]} 14... Be6 {[%clk 0:01:43]} 15. Rad1 {[%clk 0:02:35.5]} 15...
Qh5 {[%clk 0:01:34.5]} 16. Qe2 {[%clk 0:02:22.2]} 16... Rae8 {[%clk 0:01:17.9]}
17. Nd4 {[%clk 0:02:19.6]} 17... Qxe2 {[%clk 0:01:13.1]} 18. Nxe2 {[%clk
0:02:20.5]} 18... e4 {[%clk 0:00:49.3]} 19. Bxf6 {[%clk 0:02:18.9]} 19... Rxf6
{[%clk 0:00:50.2]} 20. Nf4 {[%clk 0:02:17.2]} 20... Ne5 {[%clk 0:00:44.6]} 21.
Rd4 {[%clk 0:02:12]} 21... Bf7 {[%clk 0:00:41.4]} 22. Red1 {[%clk 0:02:10.1]}
22... h6 {[%clk 0:00:37.4]} 23. Rd8 {[%clk 0:02:03.7]} 23... g5 {[%clk
0:00:35.3]} 24. Nd5 {[%clk 0:01:57.2]} 24... Ra6 {[%clk 0:00:18]} 25. Nxc7
{[%clk 0:01:55]} 25... Rxd8 {[%clk 0:00:14.6]} 26. Rxd8+ {[%clk 0:01:55.9]}
26... Kg7 {[%clk 0:00:15.1]} 27. Nxa6 {[%clk 0:01:55.8]} 27... bxa6 {[%clk
0:00:16]} 28. Ra8 {[%clk 0:01:54.5]} 28... Nc6 {[%clk 0:00:15.1]} 29. Bf1 {[%clk
0:01:50.4]} 29... a5 {[%clk 0:00:13.8]} 30. c5 {[%clk 0:01:49.9]} 30... a4
{[%clk 0:00:13.3]} 31. Bb5 {[%clk 0:01:49.3]} 31... axb3 {[%clk 0:00:12.7]} 32.
axb3 {[%clk 0:01:49.3]} 32... Na5 {[%clk 0:00:11.9]} 33. Rxa7 {[%clk 0:01:48.7]}
33... Nxb3 {[%clk 0:00:11.8]} 34. Bc4 {[%clk 0:01:48.8]} 1-0

[Event "*** Titled Tuesday Blitz"]
[Site "Chess.com"]
[Date "2020.04.28"]
[Round "1"]
[White "Omk124"]
[Black "SamuelGhimpu2003"]
[Result "0-1"]
[WhiteElo "2356"]
[BlackElo "2693"]
[TimeControl "180+1"]
[EndTime "10:05:30 PDT"]
[Termination "SamuelGhimpu2003 won by checkmate"]

1. e4 {[%clk 0:03:00.9]} 1... d6 {[%clk 0:02:58.6]} 2. d4 {[%clk 0:02:59.5]}
2... Nf6 {[%clk 0:02:57.9]} 3. Nc3 {[%clk 0:02:59.5]} 3... g6 {[%clk 0:02:57.7]}
4. Nf3 {[%clk 0:02:59.1]} 4... Bg7 {[%clk 0:02:58]} 5. h4 {[%clk 0:02:59.2]}
5... a6 {[%clk 0:02:53.6]} 6. a4 {[%clk 0:02:58.8]} 6... Bg4 {[%clk 0:02:36]} 7.
Be2 {[%clk 0:02:58.6]} 7... Nbd7 {[%clk 0:02:33.9]} 8. Be3 {[%clk 0:02:57.3]}
8... c5 {[%clk 0:02:30.1]} 9. Qd2 {[%clk 0:02:54.3]} 9... cxd4 {[%clk
0:02:25.3]} 10. Nxd4 {[%clk 0:02:37]} 10... Bxe2 {[%clk 0:02:26.2]} 11. Ndxe2
{[%clk 0:02:29.7]} 11... Nc5 {[%clk 0:02:25.2]} 12. f3 {[%clk 0:02:24]} 12...
Rc8 {[%clk 0:02:22.3]} 13. O-O-O {[%clk 0:02:20.1]} 13... Qa5 {[%clk 0:02:19.3]}
14. Bxc5 {[%clk 0:01:28.3]} 14... Rxc5 {[%clk 0:02:05.1]} 15. Kb1 {[%clk
0:01:21.4]} 15... b5 {[%clk 0:02:02.8]} 16. axb5 {[%clk 0:01:08.8]} 16... axb5
{[%clk 0:02:03.7]} 17. Nd5 {[%clk 0:01:04.5]} 17... Qa4 {[%clk 0:02:02.3]} 18.
Nxe7 {[%clk 0:00:57.9]} 18... Rc7 {[%clk 0:01:52.7]} 19. Nc3 {[%clk 0:00:40.3]}
19... Qa6 {[%clk 0:01:47.4]} 20. Ned5 {[%clk 0:00:24.8]} 20... Ra7 {[%clk
0:01:44.3]} 21. Kc1 {[%clk 0:00:20.6]} 21... b4 {[%clk 0:01:24.2]} 22. Nxb4
{[%clk 0:00:19.1]} 22... Qa1+ {[%clk 0:01:20.4]} 23. Nb1 {[%clk 0:00:19.4]}
23... Nxe4 {[%clk 0:01:19]} 24. Qe3 {[%clk 0:00:17.6]} 24... Qxb2# {[%clk
0:01:17.5]} 0-1

[Event "*** Titled Tuesday Blitz"]
[Site "Chess.com"]
[Date "2020.04.28"]
[Round "1"]
[White "RodinMihail"]
[Black "Larina_Marija"]
[Result "1-0"]
[WhiteElo "2525"]
[BlackElo "2165"]
[TimeControl "180+1"]
[EndTime "10:05:31 PDT"]
[Termination "RodinMihail won on time"]

1. e4 {[%clk 0:03:00.7]} 1... d5 {[%clk 0:02:59.3]} 2. exd5 {[%clk 0:02:59.8]}
2... Qxd5 {[%clk 0:02:59.7]} 3. Nc3 {[%clk 0:02:59.9]} 3... Qa5 {[%clk
0:02:59.5]} 4. d4 {[%clk 0:02:59.9]} 4... Nf6 {[%clk 0:02:58.4]} 5. Nf3 {[%clk
0:03:00]} 5... Bf5 {[%clk 0:02:58]} 6. Bc4 {[%clk 0:02:58.8]} 6... e6 {[%clk
0:02:57.5]} 7. Ne5 {[%clk 0:02:58.6]} 7... Be7 {[%clk 0:02:29.3]} 8. g4 {[%clk
0:02:52.6]} 8... Be4 {[%clk 0:02:24.9]} 9. O-O {[%clk 0:02:51.1]} 9... Bd5
{[%clk 0:01:40.6]} 10. Nxd5 {[%clk 0:02:49.2]} 10... exd5 {[%clk 0:01:38.1]} 11.
Bd3 {[%clk 0:02:48.8]} 11... Nbd7 {[%clk 0:01:29.4]} 12. f4 {[%clk 0:02:40.2]}
12... c5 {[%clk 0:01:12.3]} 13. c3 {[%clk 0:02:29.2]} 13... Nxe5 {[%clk
0:00:52.3]} 14. fxe5 {[%clk 0:02:21.6]} 14... Nd7 {[%clk 0:00:47.6]} 15. Qf3
{[%clk 0:02:20.1]} 15... O-O-O {[%clk 0:00:40.6]} 16. Qxf7 {[%clk 0:02:19]}
16... Bh4 {[%clk 0:00:13.7]} 17. e6 {[%clk 0:02:09.9]} 17... Nf6 {[%clk
0:00:12.2]} 18. e7 {[%clk 0:02:07.6]} 18... Rde8 {[%clk 0:00:12]} 19. Bf4 {[%clk
0:02:02.9]} 19... Nd7 {[%clk 0:00:08.9]} 20. Qxd5 {[%clk 0:01:48.4]} 20... Rxe7
{[%clk 0:00:07.8]} 21. Bf5 {[%clk 0:01:48.2]} 21... Rd8 {[%clk 0:00:06.3]} 22.
Qd6 {[%clk 0:01:44.3]} 1-0

[Event "*** Titled Tuesday Blitz"]
[Site "Chess.com"]
[Date "2020.04.28"]
[Round "1"]
[White "WIDBIFS"]
[Black "chessablanca"]
[Result "1-0"]
[WhiteElo "2834"]
[BlackElo "2433"]
[TimeControl "180+1"]
[EndTime "10:05:32 PDT"]
[Termination "WIDBIFS won by resignation"]

1. d4 {[%clk 0:02:59.2]} 1... Nf6 {[%clk 0:02:59.7]} 2. Nf3 {[%clk 0:02:59.7]}
2... e6 {[%clk 0:02:59.9]} 3. Bf4 {[%clk 0:03:00]} 3... d5 {[%clk 0:02:59.2]} 4.
e3 {[%clk 0:03:00.6]} 4... Bd6 {[%clk 0:02:55.3]} 5. Bg3 {[%clk 0:03:00.8]} 5...
Nbd7 {[%clk 0:02:54.1]} 6. Nbd2 {[%clk 0:03:00.6]} 6... b6 {[%clk 0:02:54]} 7.
c3 {[%clk 0:03:00.6]} 7... Bb7 {[%clk 0:02:54]} 8. Bd3 {[%clk 0:03:00.1]} 8...
Ne4 {[%clk 0:02:47.5]} 9. Qe2 {[%clk 0:02:58.5]} 9... Qe7 {[%clk 0:02:44.4]} 10.
a3 {[%clk 0:02:54.7]} 10... a5 {[%clk 0:02:42.8]} 11. Rc1 {[%clk 0:02:50.1]}
11... f5 {[%clk 0:02:25.5]} 12. c4 {[%clk 0:02:46.9]} 12... c5 {[%clk
0:02:12.2]} 13. cxd5 {[%clk 0:02:44.2]} 13... exd5 {[%clk 0:02:13.1]} 14. Bb5
{[%clk 0:02:43.3]} 14... Rc8 {[%clk 0:01:59.4]} 15. Bxd6 {[%clk 0:02:22.4]}
15... Qxd6 {[%clk 0:01:31.9]} 16. Nxe4 {[%clk 0:02:17.3]} 16... dxe4 {[%clk
0:00:53.6]} 17. Ne5 {[%clk 0:02:17.1]} 17... Bc6 {[%clk 0:00:53.7]} 18. Nxc6
{[%clk 0:02:09.3]} 18... Rxc6 {[%clk 0:00:54.6]} 19. Bxc6 {[%clk 0:02:04.9]}
19... Qxc6 {[%clk 0:00:55.5]} 20. O-O {[%clk 0:01:59.7]} 20... O-O {[%clk
0:00:53.2]} 21. dxc5 {[%clk 0:02:00]} 21... bxc5 {[%clk 0:00:50.8]} 22. Qc4+
{[%clk 0:01:58.9]} 22... Kh8 {[%clk 0:00:50.3]} 23. Rfd1 {[%clk 0:01:59.4]}
23... Rc8 {[%clk 0:00:35]} 24. Qd5 {[%clk 0:01:57.1]} 24... Qxd5 {[%clk
0:00:27.2]} 25. Rxd5 {[%clk 0:01:58]} 25... Rc7 {[%clk 0:00:23.1]} 26. Rcd1
{[%clk 0:01:52.4]} 26... Nf8 {[%clk 0:00:19.2]} 27. Rxf5 {[%clk 0:01:51.9]}
27... Rc8 {[%clk 0:00:17.2]} 28. h3 {[%clk 0:01:43]} 28... g6 {[%clk 0:00:16.6]}
29. Rf7 {[%clk 0:01:42.4]} 29... Ne6 {[%clk 0:00:15.6]} 30. Rdd7 {[%clk
0:01:41.6]} 30... Ng5 {[%clk 0:00:15.5]} 31. Rfe7 {[%clk 0:01:42.2]} 31... Rb8
{[%clk 0:00:15.1]} 32. h4 {[%clk 0:01:42.2]} 1-0

[Event "*** Titled Tuesday Blitz"]
[Site "Chess.com"]
[Date "2020.04.28"]
[Round "1"]
[White "NotFischer"]
[Black "SiddharthGMJagadeesh"]
[Result "1-0"]
[WhiteElo "2151"]
[BlackElo "2500"]
[TimeControl "180+1"]
[EndTime "10:05:33 PDT"]
[Termination "NotFischer won by resignation"]

1. Nf3 {[%clk 0:03:00.8]} 1... d5 {[%clk 0:02:57.6]} 2. g3 {[%clk 0:03:01.1]}
2... Nf6 {[%clk 0:02:56.2]} 3. Bg2 {[%clk 0:03:01.4]} 3... e6 {[%clk 0:02:55.4]}
4. d4 {[%clk 0:03:01]} 4... b5 {[%clk 0:02:53.1]} 5. O-O {[%clk 0:03:00.3]} 5...
Nbd7 {[%clk 0:02:50.7]} 6. a4 {[%clk 0:03:00]} 6... b4 {[%clk 0:02:48.4]} 7. c4
{[%clk 0:03:00]} 7... bxc3 {[%clk 0:02:47.2]} 8. bxc3 {[%clk 0:03:00.2]} 8...
Ba6 {[%clk 0:02:47]} 9. Nbd2 {[%clk 0:02:56.2]} 9... c5 {[%clk 0:02:42.4]} 10.
Re1 {[%clk 0:02:55.5]} 10... cxd4 {[%clk 0:02:34.2]} 11. cxd4 {[%clk 0:02:55.4]}
11... Bb4 {[%clk 0:02:31.8]} 12. Ba3 {[%clk 0:02:52.1]} 12... Bxa3 {[%clk
0:02:28.9]} 13. Rxa3 {[%clk 0:02:51.5]} 13... Qe7 {[%clk 0:02:29.6]} 14. Rc3
{[%clk 0:02:41]} 14... O-O {[%clk 0:02:24.5]} 15. Qc2 {[%clk 0:02:38.6]} 15...
Nb6 {[%clk 0:02:17.7]} 16. Ne5 {[%clk 0:02:33.3]} 16... Rfc8 {[%clk 0:02:03.3]}
17. Nc6 {[%clk 0:02:20.6]} 17... Qd6 {[%clk 0:01:53.2]} 18. Rc1 {[%clk 0:02:15]}
18... Nc4 {[%clk 0:01:49.9]} 19. Nxc4 {[%clk 0:02:07.1]} 19... Bxc4 {[%clk
0:01:48.9]} 20. Ne5 {[%clk 0:02:07.3]} 20... Rab8 {[%clk 0:01:28.1]} 21. Nxc4
{[%clk 0:02:05.5]} 21... dxc4 {[%clk 0:01:28.1]} 22. Rxc4 {[%clk 0:02:06.4]}
22... Rxc4 {[%clk 0:01:28]} 23. Qxc4 {[%clk 0:02:07.3]} 23... h6 {[%clk
0:01:27.1]} 24. e4 {[%clk 0:02:02.6]} 24... Qa3 {[%clk 0:01:15.2]} 25. e5 {[%clk
0:01:51.4]} 25... Nd5 {[%clk 0:01:13.3]} 26. Bxd5 {[%clk 0:01:38.6]} 26... exd5
{[%clk 0:01:12.4]} 27. Qc7 {[%clk 0:01:38.8]} 27... Rb4 {[%clk 0:00:44.1]} 28.
Qc8+ {[%clk 0:01:16.3]} 28... Kh7 {[%clk 0:00:34.5]} 29. Qf5+ {[%clk 0:01:15.4]}
1-0

[Event "*** Titled Tuesday Blitz"]
[Site "Chess.com"]
[Date "2020.04.28"]
[Round "1"]
[White "davigator"]
[Black "LuckIsMySkill"]
[Result "0-1"]
[WhiteElo "2386"]
[BlackElo "2729"]
[TimeControl "180+1"]
[EndTime "10:05:34 PDT"]
[Termination "LuckIsMySkill won by resignation"]

1. e4 {[%clk 0:02:47.5]} 1... c5 {[%clk 0:02:59.6]} 2. Nf3 {[%clk 0:02:46.8]}
2... d6 {[%clk 0:02:59.2]} 3. d4 {[%clk 0:02:46.5]} 3... Bg4 {[%clk 0:02:59.2]}
4. dxc5 {[%clk 0:02:43.3]} 4... Qa5+ {[%clk 0:02:58.9]} 5. Nc3 {[%clk
0:02:41.6]} 5... Qxc5 {[%clk 0:02:59.1]} 6. Bd3 {[%clk 0:02:39.6]} 6... Nf6
{[%clk 0:02:54]} 7. h3 {[%clk 0:02:38.8]} 7... Bxf3 {[%clk 0:02:53.6]} 8. Qxf3
{[%clk 0:02:38.5]} 8... Nc6 {[%clk 0:02:52.6]} 9. O-O {[%clk 0:02:37.4]} 9... e6
{[%clk 0:02:50.9]} 10. Be3 {[%clk 0:02:32.1]} 10... Qa5 {[%clk 0:02:50.6]} 11.
Qe2 {[%clk 0:02:29.5]} 11... Be7 {[%clk 0:02:39.6]} 12. a3 {[%clk 0:02:24.6]}
12... O-O {[%clk 0:02:38.9]} 13. b4 {[%clk 0:02:23.8]} 13... Qc7 {[%clk
0:02:38.7]} 14. Nb5 {[%clk 0:02:23.4]} 14... Qd7 {[%clk 0:02:36]} 15. Rfd1
{[%clk 0:02:20.8]} 15... a6 {[%clk 0:02:34.8]} 16. Nd4 {[%clk 0:02:17.9]} 16...
d5 {[%clk 0:02:15.8]} 17. Nxc6 {[%clk 0:02:15.8]} 17... Qxc6 {[%clk 0:02:15.6]}
18. e5 {[%clk 0:02:16.1]} 18... Nd7 {[%clk 0:02:15.2]} 19. f4 {[%clk 0:02:15.9]}
19... Bd8 {[%clk 0:02:11.2]} 20. Kh1 {[%clk 0:02:13.2]} 20... Bb6 {[%clk
0:02:06.5]} 21. Bd2 {[%clk 0:02:13.3]} 21... f5 {[%clk 0:01:59.7]} 22. c4 {[%clk
0:02:06.1]} 22... Rac8 {[%clk 0:01:31.6]} 23. c5 {[%clk 0:02:05.6]} 23... Bd8
{[%clk 0:01:27]} 24. Rdc1 {[%clk 0:02:05.2]} 24... Qc7 {[%clk 0:01:23.7]} 25.
Rab1 {[%clk 0:02:02.7]} 25... Be7 {[%clk 0:01:23.3]} 26. Be3 {[%clk 0:02:02.5]}
26... Qd8 {[%clk 0:01:17.7]} 27. c6 {[%clk 0:01:53.7]} 27... Rxc6 {[%clk
0:01:16.7]} 28. Rxc6 {[%clk 0:01:52.3]} 28... bxc6 {[%clk 0:01:17.6]} 29. Bxa6
{[%clk 0:01:52.6]} 29... c5 {[%clk 0:01:16.2]} 30. b5 {[%clk 0:01:39.3]} 30...
Qa5 {[%clk 0:01:13.8]} 31. Qb2 {[%clk 0:01:35.6]} 31... c4 {[%clk 0:01:08.1]}
32. Ra1 {[%clk 0:01:33.4]} 32... Nc5 {[%clk 0:01:05.5]} 33. Bd2 {[%clk
0:01:32.2]} 33... Qb6 {[%clk 0:01:05]} 34. Bb4 {[%clk 0:01:31.3]} 34... Nd3
{[%clk 0:01:02.8]} 35. Qc3 {[%clk 0:01:30.8]} 35... Bxb4 {[%clk 0:01:00.1]} 36.
axb4 {[%clk 0:01:29.9]} 36... Nxf4 {[%clk 0:00:50.7]} 37. Re1 {[%clk 0:01:27.8]}
37... Qf2 {[%clk 0:00:46.5]} 0-1

[Event "*** Titled Tuesday Blitz"]
[Site "Chess.com"]
[Date "2020.04.28"]
[Round "1"]
[White "ajian"]
[Black "moro182"]
[Result "0-1"]
[WhiteElo "2354"]
[BlackElo "2692"]
[TimeControl "180+1"]
[EndTime "10:05:34 PDT"]
[Termination "moro182 won by checkmate"]

1. d4 {[%clk 0:02:57.5]} 1... Nf6 {[%clk 0:02:56.3]} 2. c4 {[%clk 0:02:57.6]}
2... e6 {[%clk 0:02:56.2]} 3. Nc3 {[%clk 0:02:57.8]} 3... d5 {[%clk 0:02:56.7]}
4. cxd5 {[%clk 0:02:57.8]} 4... exd5 {[%clk 0:02:57.6]} 5. Bg5 {[%clk
0:02:57.7]} 5... c6 {[%clk 0:02:57.7]} 6. e3 {[%clk 0:02:57.1]} 6... h6 {[%clk
0:02:58.2]} 7. Bh4 {[%clk 0:02:52.8]} 7... Be6 {[%clk 0:02:58.8]} 8. Bd3 {[%clk
0:02:52.5]} 8... Nbd7 {[%clk 0:02:59.1]} 9. Nge2 {[%clk 0:02:52.5]} 9... g5
{[%clk 0:02:59.5]} 10. Bg3 {[%clk 0:02:52.2]} 10... Nh5 {[%clk 0:03:00.1]} 11.
Qc2 {[%clk 0:02:42]} 11... Nxg3 {[%clk 0:02:59.7]} 12. Nxg3 {[%clk 0:02:41.8]}
12... h5 {[%clk 0:03:00]} 13. O-O {[%clk 0:02:37.8]} 13... h4 {[%clk 0:02:34.3]}
14. Nf5 {[%clk 0:02:37.5]} 14... Qf6 {[%clk 0:02:33.9]} 15. e4 {[%clk
0:02:23.5]} 15... Bxf5 {[%clk 0:02:31.2]} 16. exf5 {[%clk 0:02:23.3]} 16... Bd6
{[%clk 0:02:18.9]} 17. Rfe1+ {[%clk 0:02:15.9]} 17... Kf8 {[%clk 0:02:18.9]} 18.
Ne2 {[%clk 0:01:47.5]} 18... g4 {[%clk 0:02:18.7]} 19. g3 {[%clk 0:01:27.5]}
19... hxg3 {[%clk 0:02:07.8]} 20. fxg3 {[%clk 0:01:25.4]} 20... Qh6 {[%clk
0:02:05.2]} 21. Nc3 {[%clk 0:01:19.3]} 21... Bxg3 {[%clk 0:01:53.4]} 22. Re2
{[%clk 0:01:06.8]} 22... Re8 {[%clk 0:01:47.2]} 23. Rg2 {[%clk 0:00:40.4]} 23...
Bd6 {[%clk 0:01:45.6]} 24. Ne2 {[%clk 0:00:21.6]} 24... Bxh2+ {[%clk 0:01:43]}
25. Kf1 {[%clk 0:00:21.3]} 25... Qe3 {[%clk 0:01:32.9]} 26. Ng1 {[%clk
0:00:11.4]} 26... Bxg1 {[%clk 0:01:30]} 27. Rxg1 {[%clk 0:00:11.6]} 27... Qf3+
{[%clk 0:01:30.1]} 28. Qf2 {[%clk 0:00:10.3]} 28... Qxd3+ {[%clk 0:01:30.2]} 29.
Kg2 {[%clk 0:00:10.7]} 29... Qh3# {[%clk 0:01:31]} 0-1